[Event "Late-Titled-Tuesday-Blitz-May-14-2024"]
[Site "Chess.com"]
[Date "2024.05.14"]
[Round "9"]
[White "RianKapriaga"]
[Black "duone"]
[Result "1/2-1/2"]
[WhiteElo "2289"]
[BlackElo "2414"]
[TimeControl "180+1"]
[EndTime "15:41:58 PDT"]
[Termination "Game drawn by repetition"]

1. d4 {[%clk 0:02:56.3]} 1... Nf6 {[%clk 0:02:59.2]} 2. Nf3 {[%clk 0:02:56.7]}
2... e6 {[%clk 0:02:59.3]} 3. Bf4 {[%clk 0:02:56.9]} 3... c5 {[%clk 0:02:58.6]}
4. e3 {[%clk 0:02:56.8]} 4... Nc6 {[%clk 0:02:57]} 5. c3 {[%clk 0:02:56.7]} 5...
d5 {[%clk 0:02:56.8]} 6. Nbd2 {[%clk 0:02:56.2]} 6... b6 {[%clk 0:02:57.1]} 7.
Bd3 {[%clk 0:02:55.1]} 7... Bb7 {[%clk 0:02:57.6]} 8. Ne5 {[%clk 0:02:54.1]}
8... Bd6 {[%clk 0:02:55.1]} 9. O-O {[%clk 0:02:52.5]} 9... O-O {[%clk
0:02:54.8]} 10. Nxc6 {[%clk 0:02:51.8]} 10... Bxc6 {[%clk 0:02:54]} 11. Bxd6
{[%clk 0:02:52.2]} 11... Qxd6 {[%clk 0:02:53.8]} 12. f4 {[%clk 0:02:52.4]} 12...
Ne4 {[%clk 0:02:42.9]} 13. Nxe4 {[%clk 0:02:42.7]} 13... dxe4 {[%clk 0:02:42.7]}
14. Be2 {[%clk 0:02:38.6]} 14... f5 {[%clk 0:02:42.1]} 15. dxc5 {[%clk
0:02:33.4]} 15... Qxc5 {[%clk 0:02:41.4]} 16. Qd4 {[%clk 0:02:33.1]} 16... Rad8
{[%clk 0:02:34.3]} 17. Qxc5 {[%clk 0:02:30.9]} 17... bxc5 {[%clk 0:02:35.2]} 18.
Rfd1 {[%clk 0:02:29.2]} 18... Kf7 {[%clk 0:02:32.8]} 19. Bc4 {[%clk 0:02:22.9]}
19... Ke7 {[%clk 0:02:32.2]} 20. Kf2 {[%clk 0:02:21.1]} 20... Bd5 {[%clk
0:02:32.4]} 21. Be2 {[%clk 0:02:08.8]} 21... h6 {[%clk 0:02:23.7]} 22. Rd2
{[%clk 0:02:06.2]} 22... g5 {[%clk 0:02:23.5]} 23. g3 {[%clk 0:02:02.2]} 23...
Rd6 {[%clk 0:02:07.6]} 24. a3 {[%clk 0:01:56.7]} 24... Rfd8 {[%clk 0:02:05.5]}
25. Rad1 {[%clk 0:01:53.2]} 25... g4 {[%clk 0:01:58.2]} 26. c4 {[%clk
0:01:44.5]} 26... Bc6 {[%clk 0:01:57.9]} 27. Rxd6 {[%clk 0:01:44.5]} 27... Rxd6
{[%clk 0:01:58.2]} 28. Rxd6 {[%clk 0:01:45]} 28... Kxd6 {[%clk 0:01:58.7]} 29.
b4 {[%clk 0:01:45.1]} 29... h5 {[%clk 0:01:39.1]} 30. Ke1 {[%clk 0:01:42.4]}
30... Kc7 {[%clk 0:01:35.7]} 31. Kd2 {[%clk 0:01:40.5]} 31... Kb6 {[%clk
0:01:34.1]} 32. Bd1 {[%clk 0:01:37.5]} 32... a5 {[%clk 0:01:31.5]} 33. bxc5+
{[%clk 0:01:30.7]} 33... Kxc5 {[%clk 0:01:31.6]} 34. Kc3 {[%clk 0:01:30.8]}
34... Bb7 {[%clk 0:01:26.2]} 35. Ba4 {[%clk 0:01:29.4]} 35... Ba6 {[%clk
0:01:25.5]} 36. Bb3 {[%clk 0:00:34]} 36... Bb7 {[%clk 0:01:21.4]} 37. Ba4 {[%clk
0:00:32.3]} 37... Ba6 {[%clk 0:01:21.5]} 38. Bb3 {[%clk 0:00:32]} 38... Bb7
{[%clk 0:01:19.3]} 39. Ba2 {[%clk 0:00:27.4]} 39... Ba6 {[%clk 0:01:15.6]} 40.
Bb3 {[%clk 0:00:26.7]} 1/2-1/2

[Event "Late-Titled-Tuesday-Blitz-May-14-2024"]
[Site "Chess.com"]
[Date "2024.05.14"]
[Round "9"]
[White "KaydenTroffChess"]
[Black "MKlose11"]
[Result "1-0"]
[WhiteElo "2853"]
[BlackElo "2626"]
[TimeControl "180+1"]
[EndTime "15:42:06 PDT"]
[Termination "KaydenTroffChess won by checkmate"]

1. d4 {[%clk 0:03:00.9]} 1... Nf6 {[%clk 0:02:56.2]} 2. Nf3 {[%clk 0:03:01.1]}
2... c5 {[%clk 0:02:52.2]} 3. dxc5 {[%clk 0:03:00.4]} 3... Qa5+ {[%clk
0:02:49.2]} 4. Qd2 {[%clk 0:03:00.4]} 4... Qxc5 {[%clk 0:02:49.3]} 5. Qc3 {[%clk
0:03:01.1]} 5... Qxc3+ {[%clk 0:02:48.7]} 6. Nxc3 {[%clk 0:03:02]} 6... d5
{[%clk 0:02:48.8]} 7. Nb5 {[%clk 0:02:57.4]} 7... Na6 {[%clk 0:02:48.1]} 8. Bf4
{[%clk 0:02:55.4]} 8... Bd7 {[%clk 0:02:45.8]} 9. e3 {[%clk 0:02:55.9]} 9... Nh5
{[%clk 0:02:41.2]} 10. Be5 {[%clk 0:02:50.9]} 10... f6 {[%clk 0:02:38.8]} 11.
Bc3 {[%clk 0:02:49.7]} 11... g6 {[%clk 0:02:15]} 12. O-O-O {[%clk 0:02:42.6]}
12... Bc6 {[%clk 0:02:12.3]} 13. Nbd4 {[%clk 0:01:54]} 13... Nc7 {[%clk
0:02:10.1]} 14. Nxc6 {[%clk 0:01:51.6]} 14... bxc6 {[%clk 0:02:10.5]} 15. g4
{[%clk 0:01:51.6]} 15... Ng7 {[%clk 0:02:09.9]} 16. g5 {[%clk 0:01:52]} 16...
Kf7 {[%clk 0:02:02.1]} 17. h4 {[%clk 0:01:32.9]} 17... Nge6 {[%clk 0:01:54.1]}
18. h5 {[%clk 0:01:30.1]} 18... Bg7 {[%clk 0:01:42.7]} 19. gxf6 {[%clk
0:01:28.3]} 19... exf6 {[%clk 0:01:38.3]} 20. Bd3 {[%clk 0:01:26.3]} 20... g5
{[%clk 0:01:31.9]} 21. h6 {[%clk 0:01:22]} 21... Bf8 {[%clk 0:01:32.1]} 22. Bf5
{[%clk 0:01:20.3]} 22... Rb8 {[%clk 0:01:26.1]} 23. e4 {[%clk 0:01:18.8]} 23...
Bb4 {[%clk 0:01:21.3]} 24. Bxe6+ {[%clk 0:01:06.5]} 24... Nxe6 {[%clk
0:01:20.4]} 25. Bxb4 {[%clk 0:01:02.6]} 25... Rxb4 {[%clk 0:01:21.3]} 26. exd5
{[%clk 0:01:03.1]} 26... cxd5 {[%clk 0:01:20]} 27. Rxd5 {[%clk 0:01:04]} 27...
Rf4 {[%clk 0:01:20.1]} 28. Rd7+ {[%clk 0:00:56.5]} 28... Kg6 {[%clk 0:01:18.7]}
29. Nd2 {[%clk 0:00:50.2]} 29... Rxf2 {[%clk 0:01:17.3]} 30. Rxa7 {[%clk
0:00:42]} 30... Rc8 {[%clk 0:01:16.2]} 31. c3 {[%clk 0:00:39.9]} 31... Rd8
{[%clk 0:01:12.6]} 32. Ne4 {[%clk 0:00:35.6]} 32... Re2 {[%clk 0:01:12.6]} 33.
Ng3 {[%clk 0:00:34.5]} 33... Rg2 {[%clk 0:01:10.5]} 34. Ne4 {[%clk 0:00:14.3]}
34... Re2 {[%clk 0:01:09.5]} 35. Ng3 {[%clk 0:00:14.1]} 35... Rg2 {[%clk
0:01:04]} 36. Re7 {[%clk 0:00:14.1]} 36... Nf4 {[%clk 0:01:03.2]} 37. Rg7#
{[%clk 0:00:13.8]} 1-0

[Event "Late-Titled-Tuesday-Blitz-May-14-2024"]
[Site "Chess.com"]
[Date "2024.05.14"]
[Round "9"]
[White "Oleksandr_Bortnyk"]
[Black "Kacparov"]
[Result "1-0"]
[WhiteElo "3060"]
[BlackElo "2926"]
[TimeControl "180+1"]
[EndTime "15:42:07 PDT"]
[Termination "Oleksandr_Bortnyk won by resignation"]

1. e4 {[%clk 0:03:00.9]} 1... c5 {[%clk 0:02:59.2]} 2. Be2 {[%clk 0:02:57.4]}
2... Nc6 {[%clk 0:02:58.8]} 3. d3 {[%clk 0:02:57.6]} 3... g6 {[%clk 0:02:58.6]}
4. f4 {[%clk 0:02:58.5]} 4... Bg7 {[%clk 0:02:58.5]} 5. Nf3 {[%clk 0:02:59.2]}
5... d6 {[%clk 0:02:57.3]} 6. c3 {[%clk 0:02:59.1]} 6... Nh6 {[%clk 0:02:49.2]}
7. O-O {[%clk 0:02:56.2]} 7... f5 {[%clk 0:02:47.5]} 8. Qb3 {[%clk 0:02:53.7]}
8... Nf7 {[%clk 0:02:42.8]} 9. Be3 {[%clk 0:02:51]} 9... Qb6 {[%clk 0:02:32]}
10. Qc2 {[%clk 0:02:47.9]} 10... O-O {[%clk 0:02:30.1]} 11. Nbd2 {[%clk
0:02:47.3]} 11... Qc7 {[%clk 0:02:26.3]} 12. Rac1 {[%clk 0:02:35.7]} 12... e5
{[%clk 0:02:23.8]} 13. Qb3 {[%clk 0:02:31.2]} 13... Kh8 {[%clk 0:02:21.9]} 14.
d4 {[%clk 0:02:22.2]} 14... cxd4 {[%clk 0:02:01]} 15. cxd4 {[%clk 0:02:21.2]}
15... exd4 {[%clk 0:02:00.7]} 16. Nxd4 {[%clk 0:02:11.4]} 16... Nxd4 {[%clk
0:01:57.8]} 17. Rxc7 {[%clk 0:02:07.7]} 17... Nxb3 {[%clk 0:01:58]} 18. axb3
{[%clk 0:01:55.4]} 18... fxe4 {[%clk 0:01:53.7]} 19. Nxe4 {[%clk 0:01:48.1]}
19... Bf5 {[%clk 0:01:49.8]} 20. Ng3 {[%clk 0:01:47.3]} 20... Rae8 {[%clk
0:01:43.7]} 21. Bxa7 {[%clk 0:01:44.6]} 21... Bc8 {[%clk 0:01:02.1]} 22. Bb5
{[%clk 0:01:36.2]} 22... Rd8 {[%clk 0:00:53.5]} 23. Re1 {[%clk 0:01:28.2]} 23...
Bf6 {[%clk 0:00:43.7]} 24. Bb6 {[%clk 0:01:15.1]} 24... Nh6 {[%clk 0:00:29.4]}
25. Ne4 {[%clk 0:01:15.1]} 25... Bg7 {[%clk 0:00:23.3]} 26. Ng5 {[%clk
0:01:11.8]} 26... Nf5 {[%clk 0:00:15.3]} 27. Nf7+ {[%clk 0:01:08.5]} 27... Rxf7
{[%clk 0:00:13.9]} 28. Rxf7 {[%clk 0:01:09.4]} 28... Rg8 {[%clk 0:00:13.6]} 29.
Bc4 {[%clk 0:01:04.9]} 29... Bxb2 {[%clk 0:00:11.7]} 30. g4 {[%clk 0:00:55.5]}
30... Nh4 {[%clk 0:00:09.5]} 31. Ree7 {[%clk 0:00:54.3]} 1-0

[Event "Late-Titled-Tuesday-Blitz-May-14-2024"]
[Site "Chess.com"]
[Date "2024.05.14"]
[Round "9"]
[White "maurovargas01"]
[Black "if_name_main_a"]
[Result "0-1"]
[WhiteElo "1924"]
[BlackElo "2443"]
[TimeControl "180+1"]
[EndTime "15:42:13 PDT"]
[Termination "if_name_main_a won on time"]

1. e4 {[%clk 0:02:00.6]} 1... g6 {[%clk 0:02:57.9]} 2. Nc3 {[%clk 0:01:54.3]}
2... Bg7 {[%clk 0:02:27.9]} 3. f4 {[%clk 0:01:54.4]} 3... d6 {[%clk 0:02:27.2]}
4. Nf3 {[%clk 0:01:54.4]} 4... a6 {[%clk 0:02:24.9]} 5. g3 {[%clk 0:01:54.2]}
5... b5 {[%clk 0:02:25.3]} 6. Bg2 {[%clk 0:01:53.9]} 6... Bb7 {[%clk 0:02:25.6]}
7. d3 {[%clk 0:01:53.6]} 7... Nd7 {[%clk 0:02:25.5]} 8. Ne2 {[%clk 0:01:51.3]}
8... Ngf6 {[%clk 0:02:22.1]} 9. c3 {[%clk 0:01:50.9]} 9... O-O {[%clk
0:02:21.7]} 10. O-O {[%clk 0:01:48.1]} 10... c5 {[%clk 0:02:21.8]} 11. h3 {[%clk
0:01:47.4]} 11... c4 {[%clk 0:02:21.1]} 12. e5 {[%clk 0:01:45.9]} 12... cxd3
{[%clk 0:02:20.1]} 13. Ned4 {[%clk 0:01:44.2]} 13... dxe5 {[%clk 0:02:18.3]} 14.
fxe5 {[%clk 0:01:44.1]} 14... Ne4 {[%clk 0:02:16.5]} 15. e6 {[%clk 0:01:30.7]}
15... Ndc5 {[%clk 0:02:16.6]} 16. exf7+ {[%clk 0:01:30.1]} 16... Rxf7 {[%clk
0:02:17.5]} 17. b4 {[%clk 0:01:26.6]} 17... Nxc3 {[%clk 0:02:08.4]} 18. Qe1
{[%clk 0:01:07.7]} 18... Bxd4+ {[%clk 0:02:07.6]} 19. Kh2 {[%clk 0:01:03.2]}
19... N5e4 {[%clk 0:01:30.4]} 20. Nxd4 {[%clk 0:00:59.1]} 20... Rxf1 {[%clk
0:01:23.4]} 21. Qxf1 {[%clk 0:00:51.5]} 21... Qxd4 {[%clk 0:01:23.9]} 22. Bb2
{[%clk 0:00:47.3]} 22... Rf8 {[%clk 0:01:20.4]} 23. Qe1 {[%clk 0:00:41.9]} 23...
Rf2 {[%clk 0:01:18.3]} 24. Rd1 {[%clk 0:00:32.2]} 24... Rxb2 {[%clk 0:01:12.6]}
25. Qf1 {[%clk 0:00:08.4]} 25... Qf2 {[%clk 0:00:53.9]} 0-1

[Event "Late-Titled-Tuesday-Blitz-May-14-2024"]
[Site "Chess.com"]
[Date "2024.05.14"]
[Round "9"]
[White "Javadovvv"]
[Black "ural58"]
[Result "1-0"]
[WhiteElo "2587"]
[BlackElo "2473"]
[TimeControl "180+1"]
[EndTime "15:42:15 PDT"]
[Termination "Javadovvv won by resignation"]

1. d4 {[%clk 0:02:59.5]} 1... d5 {[%clk 0:02:58.5]} 2. Nf3 {[%clk 0:03:00.1]}
2... Nc6 {[%clk 0:02:57.7]} 3. Bf4 {[%clk 0:03:00.5]} 3... Bg4 {[%clk
0:02:56.3]} 4. e3 {[%clk 0:02:58.8]} 4... e6 {[%clk 0:02:56]} 5. Be2 {[%clk
0:02:58.5]} 5... Bd6 {[%clk 0:02:54.8]} 6. Bg3 {[%clk 0:02:58.9]} 6... Nce7
{[%clk 0:02:53.8]} 7. Nbd2 {[%clk 0:02:58.3]} 7... Nf5 {[%clk 0:02:53.4]} 8. e4
{[%clk 0:02:50.4]} 8... Nxg3 {[%clk 0:02:52.7]} 9. hxg3 {[%clk 0:02:50.8]} 9...
c6 {[%clk 0:02:40.8]} 10. c3 {[%clk 0:02:50.2]} 10... h6 {[%clk 0:02:35.1]} 11.
Nh2 {[%clk 0:02:38.8]} 11... Bxe2 {[%clk 0:02:34]} 12. Qxe2 {[%clk 0:02:39.7]}
12... Qb6 {[%clk 0:02:33.5]} 13. Rb1 {[%clk 0:02:30.2]} 13... Ne7 {[%clk
0:02:27.5]} 14. e5 {[%clk 0:02:26.3]} 14... Bc7 {[%clk 0:02:27.4]} 15. f4 {[%clk
0:02:26]} 15... Nf5 {[%clk 0:02:18.5]} 16. Qf2 {[%clk 0:02:24.5]} 16... h5
{[%clk 0:02:16.5]} 17. Nhf3 {[%clk 0:02:21]} 17... O-O-O {[%clk 0:02:16]} 18.
Ng5 {[%clk 0:02:19.3]} 18... Rdf8 {[%clk 0:02:07.5]} 19. Ndf3 {[%clk 0:02:17.6]}
19... Bd8 {[%clk 0:02:06.1]} 20. Kd2 {[%clk 0:02:09.7]} 20... Be7 {[%clk
0:02:00.8]} 21. Kc2 {[%clk 0:02:07.4]} 21... c5 {[%clk 0:02:00.4]} 22. Rbc1
{[%clk 0:02:06]} 22... f6 {[%clk 0:01:59.8]} 23. Nh3 {[%clk 0:02:02]} 23... Kb8
{[%clk 0:01:50.9]} 24. Kb1 {[%clk 0:02:01.4]} 24... Rc8 {[%clk 0:01:50.3]} 25.
Rcd1 {[%clk 0:01:58.2]} 25... Qa6 {[%clk 0:01:48.9]} 26. Rhe1 {[%clk 0:01:54.2]}
26... Rc6 {[%clk 0:01:43.1]} 27. Nh4 {[%clk 0:01:46.9]} 27... Nxh4 {[%clk
0:01:39.8]} 28. gxh4 {[%clk 0:01:47.8]} 28... cxd4 {[%clk 0:01:37.6]} 29. Qxd4
{[%clk 0:01:44]} 29... fxe5 {[%clk 0:01:35.3]} 30. Qxe5+ {[%clk 0:01:42.9]}
30... Ka8 {[%clk 0:01:35.9]} 31. Qxg7 {[%clk 0:01:42.5]} 31... Re8 {[%clk
0:01:35.3]} 32. f5 {[%clk 0:01:40.2]} 32... e5 {[%clk 0:01:31.8]} 33. Rxe5
{[%clk 0:01:35.6]} 33... Rc7 {[%clk 0:01:28.7]} 34. f6 {[%clk 0:01:30.1]} 34...
Qa4 {[%clk 0:01:18.4]} 35. Rde1 {[%clk 0:01:24.7]} 35... Qxh4 {[%clk 0:01:03.2]}
36. f7 {[%clk 0:01:01.6]} 36... Rec8 {[%clk 0:00:57.6]} 37. f8=Q {[%clk
0:00:53.5]} 37... Bxf8 {[%clk 0:00:55]} 38. Qxc7 {[%clk 0:00:53]} 1-0

[Event "Late-Titled-Tuesday-Blitz-May-14-2024"]
[Site "Chess.com"]
[Date "2024.05.14"]
[Round "9"]
[White "Statham_01"]
[Black "Anton_Demchenko"]
[Result "1-0"]
[WhiteElo "2647"]
[BlackElo "2841"]
[TimeControl "180+1"]
[EndTime "15:42:21 PDT"]
[Termination "Statham_01 won by checkmate"]

1. e4 {[%clk 0:02:59.9]} 1... e5 {[%clk 0:03:00.6]} 2. Nf3 {[%clk 0:03:00]} 2...
Nc6 {[%clk 0:03:00.8]} 3. Bc4 {[%clk 0:02:51.3]} 3... Nf6 {[%clk 0:03:00.6]} 4.
d4 {[%clk 0:02:45.7]} 4... exd4 {[%clk 0:03:00.5]} 5. O-O {[%clk 0:02:41.9]}
5... Nxe4 {[%clk 0:03:00.6]} 6. Nc3 {[%clk 0:02:36.3]} 6... Nxc3 {[%clk
0:02:56.7]} 7. bxc3 {[%clk 0:02:36.3]} 7... d5 {[%clk 0:02:57.5]} 8. Bb5 {[%clk
0:02:35.3]} 8... Be7 {[%clk 0:02:55.6]} 9. Nxd4 {[%clk 0:02:35.2]} 9... Bd7
{[%clk 0:02:55.7]} 10. Re1 {[%clk 0:02:32.5]} 10... O-O {[%clk 0:02:55.2]} 11.
Bxc6 {[%clk 0:02:04]} 11... bxc6 {[%clk 0:02:55]} 12. Qh5 {[%clk 0:02:04.3]}
12... Bd6 {[%clk 0:02:46.1]} 13. Bg5 {[%clk 0:01:58.1]} 13... f6 {[%clk
0:02:42.2]} 14. Bh4 {[%clk 0:01:58.1]} 14... Re8 {[%clk 0:02:38.2]} 15. Bg3
{[%clk 0:01:44.1]} 15... Rb8 {[%clk 0:02:35]} 16. h3 {[%clk 0:01:34.8]} 16... g6
{[%clk 0:02:14.1]} 17. Qf3 {[%clk 0:01:30.6]} 17... Kg7 {[%clk 0:02:09.7]} 18.
h4 {[%clk 0:01:24.2]} 18... h5 {[%clk 0:01:57.8]} 19. Bxd6 {[%clk 0:01:24.4]}
19... cxd6 {[%clk 0:01:56.3]} 20. Qg3 {[%clk 0:01:25]} 20... Re5 {[%clk
0:01:17.3]} 21. f4 {[%clk 0:01:22.1]} 21... Rxe1+ {[%clk 0:01:16.4]} 22. Rxe1
{[%clk 0:01:23]} 22... f5 {[%clk 0:01:02.4]} 23. Ne6+ {[%clk 0:00:41.7]} 23...
Bxe6 {[%clk 0:00:51.7]} 24. Rxe6 {[%clk 0:00:42.6]} 24... Kf8 {[%clk 0:00:24.3]}
25. Rxg6 {[%clk 0:00:38.9]} 25... Rb1+ {[%clk 0:00:15.1]} 26. Kh2 {[%clk
0:00:37.7]} 26... Qb6 {[%clk 0:00:15.9]} 27. Rg8+ {[%clk 0:00:35.1]} 27... Ke7
{[%clk 0:00:16.5]} 28. Qg7+ {[%clk 0:00:34.9]} 28... Ke6 {[%clk 0:00:17.3]} 29.
Re8# {[%clk 0:00:34.6]} 1-0

[Event "Late-Titled-Tuesday-Blitz-May-14-2024"]
[Site "Chess.com"]
[Date "2024.05.14"]
[Round "9"]
[White "FairChess_on_YouTube"]
[Black "dropstoneDP"]
[Result "1-0"]
[WhiteElo "3078"]
[BlackElo "2959"]
[TimeControl "180+1"]
[EndTime "15:42:25 PDT"]
[Termination "FairChess_on_YouTube won by resignation"]

1. Nf3 {[%clk 0:03:00.9]} 1... Nf6 {[%clk 0:02:58.2]} 2. c4 {[%clk 0:03:00.3]}
2... c5 {[%clk 0:02:58.5]} 3. Nc3 {[%clk 0:02:59.9]} 3... e6 {[%clk 0:02:57.5]}
4. e4 {[%clk 0:02:58.7]} 4... Nc6 {[%clk 0:02:57.1]} 5. Be2 {[%clk 0:02:59.1]}
5... d5 {[%clk 0:02:56.9]} 6. exd5 {[%clk 0:02:59.4]} 6... exd5 {[%clk
0:02:57.8]} 7. d4 {[%clk 0:02:59.6]} 7... cxd4 {[%clk 0:02:57.6]} 8. Nxd4 {[%clk
0:02:59.3]} 8... dxc4 {[%clk 0:02:58.1]} 9. Nxc6 {[%clk 0:02:57.9]} 9... Qxd1+
{[%clk 0:02:58.1]} 10. Nxd1 {[%clk 0:02:58.5]} 10... bxc6 {[%clk 0:02:57.9]} 11.
Bxc4 {[%clk 0:02:59.1]} 11... Bb4+ {[%clk 0:02:54.4]} 12. Bd2 {[%clk 0:02:59]}
12... Bxd2+ {[%clk 0:02:49.8]} 13. Kxd2 {[%clk 0:02:59.9]} 13... O-O {[%clk
0:02:49.4]} 14. Ne3 {[%clk 0:02:46.1]} 14... a5 {[%clk 0:02:30.1]} 15. Rhd1
{[%clk 0:02:41.1]} 15... Ne4+ {[%clk 0:02:23.5]} 16. Ke1 {[%clk 0:02:40.6]}
16... a4 {[%clk 0:02:23.8]} 17. f3 {[%clk 0:02:36.3]} 17... Nc5 {[%clk
0:02:22.8]} 18. Rac1 {[%clk 0:02:35.7]} 18... Rb8 {[%clk 0:02:20.2]} 19. Rd2
{[%clk 0:02:27.5]} 19... Re8 {[%clk 0:01:53.8]} 20. Kf2 {[%clk 0:02:26]} 20...
Be6 {[%clk 0:01:39]} 21. Bxe6 {[%clk 0:02:23.5]} 21... Nxe6 {[%clk 0:01:39.9]}
22. Rxc6 {[%clk 0:02:23.3]} 22... Rb7 {[%clk 0:01:35.6]} 23. Rc4 {[%clk
0:02:20.7]} 23... Reb8 {[%clk 0:01:34.5]} 24. Nd1 {[%clk 0:02:17.1]} 24... Rb4
{[%clk 0:01:02.9]} 25. Rdc2 {[%clk 0:02:17.3]} 25... Kf8 {[%clk 0:01:00.8]} 26.
a3 {[%clk 0:02:16.4]} 26... Rxc4 {[%clk 0:00:48.5]} 27. Rxc4 {[%clk 0:02:17.3]}
27... Re8 {[%clk 0:00:49.1]} 28. Rxa4 {[%clk 0:02:13.8]} 28... Rd8 {[%clk
0:00:47.2]} 29. Ke1 {[%clk 0:02:10.5]} 29... Nd4 {[%clk 0:00:39.5]} 30. Ne3
{[%clk 0:02:00.3]} 30... Nb3 {[%clk 0:00:35.9]} 31. Rb4 {[%clk 0:01:54.2]} 31...
Nc1 {[%clk 0:00:35.1]} 32. Rb7 {[%clk 0:01:48.4]} 32... Nd3+ {[%clk 0:00:35.1]}
33. Ke2 {[%clk 0:01:48.6]} 33... Nf4+ {[%clk 0:00:35.2]} 34. Ke1 {[%clk
0:01:47.2]} 34... Nd3+ {[%clk 0:00:34.5]} 35. Ke2 {[%clk 0:01:36.9]} 35... Nf4+
{[%clk 0:00:34.2]} 36. Kf1 {[%clk 0:01:37.5]} 36... g6 {[%clk 0:00:26]} 37. a4
{[%clk 0:01:26.7]} 37... Rd2 {[%clk 0:00:21.5]} 38. a5 {[%clk 0:01:22.9]} 38...
Rd6 {[%clk 0:00:08.8]} 39. Rb6 {[%clk 0:01:19]} 39... Rd3 {[%clk 0:00:05.2]} 40.
a6 {[%clk 0:01:15.5]} 40... Rxe3 {[%clk 0:00:05.4]} 41. a7 {[%clk 0:01:15.2]}
1-0

[Event "Late-Titled-Tuesday-Blitz-May-14-2024"]
[Site "Chess.com"]
[Date "2024.05.14"]
[Round "9"]
[White "angelgab3"]
[Black "Mikhail_Bryakin"]
[Result "1-0"]
[WhiteElo "2735"]
[BlackElo "2838"]
[TimeControl "180+1"]
[EndTime "15:42:34 PDT"]
[Termination "angelgab3 won on time"]

1. e4 {[%clk 0:03:00.9]} 1... e6 {[%clk 0:02:24.7]} 2. d4 {[%clk 0:02:59.8]}
2... d5 {[%clk 0:02:24.9]} 3. Nc3 {[%clk 0:03:00.1]} 3... Be7 {[%clk 0:02:20.9]}
4. g3 {[%clk 0:02:44.7]} 4... Nf6 {[%clk 0:02:20.6]} 5. Bg2 {[%clk 0:02:44.2]}
5... O-O {[%clk 0:02:19.7]} 6. Nge2 {[%clk 0:02:43]} 6... dxe4 {[%clk
0:02:16.5]} 7. Nxe4 {[%clk 0:02:43.9]} 7... Nbd7 {[%clk 0:02:15.7]} 8. O-O
{[%clk 0:02:36.2]} 8... Nxe4 {[%clk 0:02:15]} 9. Bxe4 {[%clk 0:02:37.1]} 9...
Nf6 {[%clk 0:02:15.7]} 10. Bg2 {[%clk 0:02:37.2]} 10... c5 {[%clk 0:02:11.8]}
11. b3 {[%clk 0:02:29.5]} 11... Qc7 {[%clk 0:02:07]} 12. Bf4 {[%clk 0:02:28.9]}
12... Bd6 {[%clk 0:02:06.1]} 13. dxc5 {[%clk 0:02:27.7]} 13... Bxf4 {[%clk
0:02:03.6]} 14. Nxf4 {[%clk 0:02:28.6]} 14... Qxc5 {[%clk 0:02:04]} 15. c4
{[%clk 0:02:26.1]} 15... Bd7 {[%clk 0:02:03.3]} 16. Bxb7 {[%clk 0:02:25.7]}
16... Bc6 {[%clk 0:02:00.7]} 17. Bxc6 {[%clk 0:02:24.4]} 17... Qxc6 {[%clk
0:02:01.6]} 18. Qe2 {[%clk 0:02:22.7]} 18... Rad8 {[%clk 0:01:56.8]} 19. Rad1
{[%clk 0:02:12.5]} 19... h6 {[%clk 0:01:55.8]} 20. Rfe1 {[%clk 0:02:11.4]} 20...
g5 {[%clk 0:01:54.9]} 21. Nh5 {[%clk 0:02:09.4]} 21... Nxh5 {[%clk 0:01:55.2]}
22. Qxh5 {[%clk 0:02:10.3]} 22... Kg7 {[%clk 0:01:55.9]} 23. h4 {[%clk
0:02:08.7]} 23... Qc5 {[%clk 0:01:51]} 24. hxg5 {[%clk 0:02:04.5]} 24... hxg5
{[%clk 0:01:49.4]} 25. Kg2 {[%clk 0:02:02.1]} 25... Rh8 {[%clk 0:01:46.3]} 26.
Qf3 {[%clk 0:01:55.7]} 26... a5 {[%clk 0:01:43.9]} 27. Qe4 {[%clk 0:01:51]}
27... Kf6 {[%clk 0:01:42.5]} 28. Qf3+ {[%clk 0:01:30.7]} 28... Kg7 {[%clk
0:01:39.8]} 29. Qe4 {[%clk 0:01:30.8]} 29... Kf6 {[%clk 0:01:39.8]} 30. Rd3
{[%clk 0:01:31.5]} 30... Rxd3 {[%clk 0:01:37.2]} 31. Qxd3 {[%clk 0:01:32.4]}
31... g4 {[%clk 0:01:34.3]} 32. Qc3+ {[%clk 0:01:09.9]} 32... e5 {[%clk
0:01:33.1]} 33. Re4 {[%clk 0:01:08.8]} 33... Qc6 {[%clk 0:01:25.8]} 34. Qxe5+
{[%clk 0:01:08.3]} 34... Kg6 {[%clk 0:01:26.5]} 35. Kg1 {[%clk 0:00:59.5]} 35...
f5 {[%clk 0:01:15.7]} 36. Qe6+ {[%clk 0:00:58.5]} 36... Qxe6 {[%clk 0:01:15.3]}
37. Rxe6+ {[%clk 0:00:59.4]} 37... Kh5 {[%clk 0:01:16.2]} 38. Ra6 {[%clk
0:00:59.9]} 1-0

[Event "Late-Titled-Tuesday-Blitz-May-14-2024"]
[Site "Chess.com"]
[Date "2024.05.14"]
[Round "9"]
[White "annasargsyan_m"]
[Black "grzechu96"]
[Result "0-1"]
[WhiteElo "2597"]
[BlackElo "2801"]
[TimeControl "180+1"]
[EndTime "15:42:34 PDT"]
[Termination "grzechu96 won by resignation"]

1. e4 {[%clk 0:03:00.9]} 1... c5 {[%clk 0:02:59.1]} 2. Nf3 {[%clk 0:03:00]} 2...
d6 {[%clk 0:02:59.4]} 3. Bb5+ {[%clk 0:02:53.1]} 3... Bd7 {[%clk 0:02:59.6]} 4.
Bxd7+ {[%clk 0:02:52.6]} 4... Nxd7 {[%clk 0:03:00.5]} 5. O-O {[%clk 0:02:52.7]}
5... Ngf6 {[%clk 0:03:00.5]} 6. Re1 {[%clk 0:02:53.4]} 6... e6 {[%clk 0:03:01]}
7. c3 {[%clk 0:02:53.9]} 7... Be7 {[%clk 0:03:01.2]} 8. d4 {[%clk 0:02:54.5]}
8... O-O {[%clk 0:02:53.1]} 9. h3 {[%clk 0:02:25.6]} 9... Rc8 {[%clk 0:02:52.5]}
10. dxc5 {[%clk 0:02:17.2]} 10... Nxc5 {[%clk 0:02:49.8]} 11. e5 {[%clk
0:02:03.4]} 11... dxe5 {[%clk 0:02:49.1]} 12. Nxe5 {[%clk 0:02:04.3]} 12... Qxd1
{[%clk 0:02:36.5]} 13. Rxd1 {[%clk 0:02:05.2]} 13... Rfd8 {[%clk 0:02:36.7]} 14.
Re1 {[%clk 0:01:56.3]} 14... Nd5 {[%clk 0:02:02.1]} 15. Nd2 {[%clk 0:01:51.1]}
15... f6 {[%clk 0:01:46.5]} 16. Nef3 {[%clk 0:01:44.7]} 16... e5 {[%clk
0:01:43.3]} 17. Nb3 {[%clk 0:01:41.3]} 17... Nd3 {[%clk 0:01:34.7]} 18. Rf1
{[%clk 0:01:33.3]} 18... Nxc1 {[%clk 0:01:29.2]} 19. Raxc1 {[%clk 0:01:31.8]}
19... Nf4 {[%clk 0:01:29.6]} 20. Kh2 {[%clk 0:01:29.8]} 20... Nd3 {[%clk
0:01:20]} 21. Rb1 {[%clk 0:01:29.5]} 21... b6 {[%clk 0:00:52.6]} 22. g3 {[%clk
0:01:29.4]} 22... a5 {[%clk 0:00:52.8]} 23. a3 {[%clk 0:01:23]} 23... a4 {[%clk
0:00:51.9]} 24. Nc1 {[%clk 0:01:23]} 24... Bc5 {[%clk 0:00:31.1]} 25. Nxd3
{[%clk 0:01:21.6]} 25... Rxd3 {[%clk 0:00:32]} 26. Kg2 {[%clk 0:01:22]} 26... e4
{[%clk 0:00:32.6]} 27. Nh4 {[%clk 0:01:08]} 27... Rd2 {[%clk 0:00:31.4]} 28. g4
{[%clk 0:01:00.9]} 28... g6 {[%clk 0:00:23.2]} 29. Rbe1 {[%clk 0:00:54.8]} 29...
Re8 {[%clk 0:00:20.7]} 30. Rd1 {[%clk 0:00:30.5]} 30... Rxb2 {[%clk 0:00:13]}
31. Rd7 {[%clk 0:00:28.3]} 31... e3 {[%clk 0:00:10.6]} 0-1